bitfinex-derivatives/quotes_BTCF0:USTF0_20250213
["timestamp","ask_amount","ask_price","bid_price","bid_amount"]
[1739463347532,0.21637277,95862.0,95861.0,0.5694052]
[1739463348634,0.18607717,95866.0,95865.0,0.2085965]
[1739463349436,0.18607717,95866.0,95861.0,0.3608]
[1739463349739,0.208603,95862.0,95861.0,0.3608]
[1739463350040,0.18607717,95866.0,95861.0,0.3608]
[1739463350438,0.18607717,95866.0,95861.0,0.3618]
[1739463350638,0.18607717,95866.0,95864.0,0.2085982]
[1739463351432,0.39467147,95866.0,95865.0,0.001]
[1739463351632,0.2085943,95866.0,95865.0,0.001]
[1739463351832,0.2085943,95866.0,95861.0,0.3618]
[1739463352033,0.2105943,95866.0,95861.0,0.3608]
[1739463352436,0.2105943,95866.0,95860.0,0.2086069]
[1739463352437,0.208603,95862.0,95860.0,0.2086069]
[1739463352640,0.23682834,95867.0,95858.0,0.3608]
[1739463352641,0.2086066,95861.0,95858.0,0.3608]
[1739463352843,0.2086079,95860.0,95858.0,0.3608]
[1739463353235,0.2095954,95866.0,95863.0,0.2086002]
[1739463353538,0.001,95866.0,95865.0,0.2085965]
[1739463353740,0.001,95866.0,95859.0,0.2086078]
[1739463353928,0.2085988,95864.0,95858.0,0.3608]
[1739463354445,0.2085988,95864.0,95861.0,0.2086051]
[1739463355037,0.2085988,95864.0,95862.0,0.2086027]
[1739463355538,0.2115988,95864.0,95862.0,0.2086027]
[1739463356241,0.004,95864.0,95863.0,0.2086008]
[1739463356830,0.002,95864.0,95863.0,0.2086008]
[1739463357136,0.005,95864.0,95863.0,0.2086008]
[1739463357643,0.05075117,95866.0,95865.0,0.2085965]
[1739463358837,0.05375117,95866.0,95865.0,0.2085965]
[1739463359440,0.003,95866.0,95865.0,0.2085965]
[1739463359830,0.2155943,95866.0,95865.0,0.2085965]
[1739463360037,0.2086013,95863.0,95862.0,0.2086028]
[1739463360338,0.007,95866.0,95858.0,0.3608]
[1739463360749,0.2086095,95859.0,95858.0,0.3608]
[1739463361237,0.2086226,95853.0,95846.0,0.3608]
[1739463361944,0.2086226,95853.0,95842.0,0.3613]
[1739463362742,0.2086226,95853.0,95852.0,0.00115644]
[1739463363448,0.083,95858.0,95852.0,0.00115644]
[1739463363641,0.11772603,95853.0,95852.0,0.00115644]
[1739463363944,0.11972603,95853.0,95852.0,0.00115644]
[1739463364345,0.12172603,95853.0,95852.0,0.00015644]
[1739463364546,0.11972603,95853.0,95852.0,0.00015644]
[1739463365346,0.20032603,95853.0,95852.0,0.00015644]
[1739463365645,0.2086465,95842.0,95841.0,0.00156499]
[1739463366041,0.2086465,95842.0,95822.0,0.0818]
[1739463366042,0.2086879,95823.0,95822.0,0.0818]
[1739463366349,0.2086863,95824.0,95822.0,0.0818]
[1739463366550,0.208701,95817.0,95816.0,0.3608]
[1739463367050,0.2333373,95817.0,95816.0,0.3608]
[1739463367347,0.2333373,95817.0,95813.0,0.00015652]
[1739463367348,0.2087075,95814.0,95813.0,0.00015652]
[1739463367649,0.2087162,95810.0,95800.0,0.1]
[1739463368242,0.208724,95807.0,95800.0,0.1]
[1739463368846,0.00015652,95813.0,95800.0,0.1]
[1739463369045,0.2087261,95806.0,95800.0,0.1]
[1739463369252,0.12526896,95810.0,95800.0,0.3087368]
[1739463369844,0.12526896,95810.0,95801.0,0.2087348]
[1739463370246,0.12726896,95810.0,95801.0,0.2087348]
[1739463370444,0.12726896,95810.0,95803.0,0.2087313]
[1739463370757,0.002,95810.0,95809.0,0.2087184]
[1739463371052,0.00064,95832.0,95810.0,0.0521787]
[1739463371247,0.4426321,95849.0,95830.0,0.3608]
[1739463371454,0.23456001,95849.0,95837.0,0.2086574]
[1739463371648,0.234,95849.0,95837.0,0.2086574]
[1739463371854,0.234,95849.0,95830.0,0.3608]
[1739463371855,0.1582,95849.0,95841.0,0.2086487]
[1739463372055,0.02461207,95847.0,95841.0,0.2086487]
[1739463372447,0.23324917,95847.0,95839.0,0.3608]
[1739463372641,0.2086371,95847.0,95839.0,0.3608]
[1739463373451,0.02418371,95847.0,95839.0,0.3608]
[1739463373656,0.2086541,95839.0,95832.0,0.00015652]
[1739463374558,0.082,95838.0,95832.0,0.00015652]
[1739463374758,0.1634,95838.0,95832.0,0.00015652]
[1739463374962,0.1634,95838.0,95836.0,0.2086585]
[1739463375559,0.1634,95838.0,95832.0,0.00115652]
[1739463375858,0.18606263,95837.0,95832.0,0.00215652]
[1739463376159,0.2086649,95834.0,95832.0,0.00215652]
[1739463376552,0.5694649,95834.0,95832.0,0.00215652]
[1739463377057,0.2086913,95822.0,95815.0,0.3608]
[1739463377252,0.18836558,95825.0,95815.0,0.3608]
[1739463377459,0.2087032,95816.0,95815.0,0.3608]
[1739463378253,0.23323104,95816.0,95815.0,0.3668]
[1739463378660,0.23323104,95816.0,95815.0,0.3608]
[1739463378854,0.23323104,95816.0,95815.0,0.3668]
[1739463379253,0.23323104,95816.0,95815.0,0.006]
[1739463379763,0.23423104,95816.0,95815.0,0.013]
[1739463380164,0.23416955,95816.0,95815.0,0.013]
[1739463380659,0.02552784,95816.0,95815.0,0.013]
[1739463380857,0.02552784,95816.0,95815.0,0.2217053]
[1739463381257,0.001,95816.0,95815.0,0.2217053]
[1739463381655,0.001,95816.0,95815.0,0.5825053]
[1739463382762,0.18606263,95819.0,95818.0,0.2086988]
[1739463383761,0.00015652,95825.0,95824.0,0.2086857]
[1739463383963,0.00015652,95825.0,95824.0,0.5694857]
[1739463384557,0.00015652,95825.0,95818.0,0.012]
[1739463384762,0.2086966,95819.0,95818.0,0.012]
[1739463384968,0.2086966,95819.0,95818.0,0.005]
[1739463385177,0.2087227,95807.0,95804.0,0.3608]
[1739463385561,0.18836558,95820.0,95804.0,0.3608]
[1739463385763,0.18836558,95820.0,95807.0,0.2087224]
[1739463385959,0.2087127,95812.0,95807.0,0.2087224]
[1739463386262,0.2087127,95812.0,95804.0,0.3608]
[1739463386467,0.2087127,95812.0,95810.0,0.208716]
[1739463387460,0.11925734,95819.0,95807.0,0.007]
[1739463387867,0.208713,95812.0,95810.0,0.007]
[1739463388165,0.209713,95812.0,95810.0,0.007]
[1739463388374,0.209713,95812.0,95806.0,0.00715652]
[1739463388564,0.209713,95812.0,95810.0,0.002]
[1739463389070,0.3608,95811.0,95810.0,0.002]
[1739463389265,0.3608,95811.0,95770.0,0.0784]
[1739463389266,0.43924,95811.0,95770.0,0.0784]
[1739463389566,0.2087676,95787.0,95782.0,0.3608]
[1739463389758,0.18836558,95790.0,95782.0,0.3608]
[1739463389963,0.2087674,95787.0,95782.0,0.3608]
[1739463390266,0.18836558,95792.0,95782.0,0.3608]
[1739463390471,0.2087751,95783.0,95782.0,0.3608]
[1739463390872,0.2087751,95783.0,95782.0,0.3668]
[1739463391170,0.20946501,95792.0,95782.0,0.3738]
[1739463391171,0.001,95787.0,95782.0,0.3738]
[1739463391374,0.07844,95786.0,95782.0,0.3738]
[1739463391575,0.2087722,95785.0,95782.0,0.3738]
[1739463391777,0.2087746,95784.0,95782.0,0.3738]
[1739463393176,0.05078048,95783.0,95782.0,0.3738]
[1739463393475,0.05078048,95783.0,95782.0,0.3668]
[1739463394078,0.001,95784.0,95782.0,0.3668]
[1739463394280,0.07844,95783.0,95782.0,0.3668]
[1739463394474,0.07944,95783.0,95782.0,0.3668]
[1739463395070,0.07844,95783.0,95782.0,0.006]
[1739463395384,0.2087903,95777.0,95775.0,0.00015652]
[1739463396982,0.2088175,95764.0,95755.0,0.569636]
[1739463397178,0.18836558,95770.0,95755.0,0.569636]
[1739463397368,0.2088217,95762.0,95755.0,0.3608]
[1739463397573,0.2088242,95761.0,95755.0,0.3608]
[1739463397775,0.2088339,95756.0,95755.0,0.3608]
[1739463398077,0.2088422,95753.0,95747.0,0.3608]
[1739463400780,0.2098422,95753.0,95751.0,0.00456653]
[1739463400983,0.2098422,95753.0,95751.0,0.00956653]
[1739463402079,0.2098422,95753.0,95751.0,0.008]
[1739463403981,0.001,95753.0,95751.0,0.008]
[1739463404178,0.07844,95752.0,95751.0,0.008]
[1739463405076,0.209841,95753.0,95752.0,0.2088426]
[1739463405077,0.001,95753.0,95752.0,0.2088426]
[1739463405285,0.001,95752.0,95751.0,0.008]
[1739463405479,0.07844,95768.0,95764.0,0.2088164]
[1739463405684,0.02162494,95765.0,95764.0,0.2088164]
[1739463405873,0.00015661,95765.0,95764.0,0.2088164]
[1739463406277,0.00015661,95765.0,95762.0,0.0749]
[1739463406473,0.2088165,95764.0,95762.0,0.0749]
[1739463406684,0.2088165,95764.0,95752.0,0.2088422]
[1739463406685,0.2088319,95757.0,95751.0,0.008]
[1739463406987,0.02207609,95765.0,95751.0,0.003]
[1739463406988,0.2088401,95754.0,95751.0,0.003]
[1739463407187,0.2088426,95752.0,95751.0,0.003]
[1739463407487,0.2088426,95752.0,95749.0,0.3608]
[1739463408189,0.2088426,95752.0,95751.0,0.004]
[1739463408688,0.001,95754.0,95751.0,0.004]
[1739463408882,0.07844,95753.0,95749.0,0.3608]
[1739463409186,0.001,95752.0,95751.0,0.2088447]
[1739463409978,0.001,95752.0,95751.0,0.2138447]
[1739463410381,0.001,95752.0,95751.0,0.2088447]
[1739463410588,0.208817,95764.0,95751.0,0.2088447]
[1739463410589,0.208817,95764.0,95751.0,0.005]
[1739463410780,0.2088062,95769.0,95763.0,0.2088186]
[1739463411387,0.00015661,95765.0,95763.0,0.2088186]
[1739463411580,0.00015661,95765.0,95764.0,0.0791]
[1739463411885,0.00015661,95765.0,95751.0,0.003]
[1739463412084,0.2088173,95764.0,95763.0,0.3608]
[1739463412288,0.2088173,95764.0,95752.0,0.3608]
[1739463412289,0.3608,95764.0,95752.0,0.3608]
[1739463412477,0.2088404,95753.0,95752.0,0.3608]
[1739463414487,0.2088404,95753.0,95752.0,0.3618]
[1739463414678,0.2088404,95753.0,95752.0,0.3638]
[1739463415084,0.2118404,95753.0,95752.0,0.3628]
[1739463415493,0.2118404,95753.0,95752.0,0.3608]
[1739463415684,0.2148404,95753.0,95752.0,0.3608]
[1739463416985,0.003,95753.0,95746.0,0.000103]
[1739463417183,0.2088519,95748.0,95746.0,0.000103]
[1739463417891,0.006,95753.0,95749.0,0.2088481]
[1739463418195,0.2088535,95747.0,95746.0,0.000103]
[1739463418388,0.003,95753.0,95726.0,0.3608]
[1739463418590,0.2088547,95747.0,95740.0,0.2088675]
[1739463418895,0.001,95748.0,95727.0,0.1584]
[1739463419089,0.2088775,95736.0,95734.0,0.3623668]
[1739463419297,0.2088797,95735.0,95734.0,0.3630068]
[1739463419492,0.2088797,95735.0,95734.0,0.3623668]
[1739463420199,0.3608,95735.0,95709.0,0.3608]
[1739463420499,0.12574351,95720.0,95710.0,0.0833]
[1739463420793,0.3608,95713.0,95710.0,0.0833]
[1739463420999,0.2089436,95706.0,95704.0,0.3608]
[1739463421590,0.2089436,95706.0,95701.0,0.1668]
[1739463421900,0.3608,95713.0,95701.0,0.1668]
[1739463422101,0.07844,95712.0,95701.0,0.1668]
[1739463422596,0.07844,95712.0,95704.0,0.002]
[1739463422798,0.07844,95712.0,95710.0,0.007]
[1739463423503,0.07844,95712.0,95704.0,0.002]
[1739463424111,0.08044,95712.0,95701.0,0.002]
[1739463424400,0.2089361,95710.0,95701.0,0.002]
[1739463424903,0.0813,95711.0,95704.0,0.001]
[1739463425493,0.3608,95713.0,95704.0,0.001]
[1739463425695,0.0757,95719.0,95712.0,0.3608]
[1739463426005,0.0757,95719.0,95711.0,0.3608]
[1739463426301,0.18572308,95720.0,95718.0,0.2089168]
[1739463426696,0.18572308,95720.0,95719.0,0.3608]
[1739463427498,0.48654351,95730.0,95712.0,0.5208]
[1739463427697,0.3608,95717.0,95712.0,0.16]
[1739463428101,0.2089161,95719.0,95712.0,0.16]
[1739463428610,0.2089161,95719.0,95702.0,0.7227]
[1739463428807,0.2089161,95719.0,95702.0,0.7221]
[1739463428999,0.12574351,95712.0,95702.0,0.7221]
[1739463429202,0.12574351,95712.0,95711.0,0.3608]
[1739463429406,0.003,95717.0,95711.0,0.3608]
[1739463429606,0.003,95717.0,95702.0,0.72278]
[1739463429799,0.1888646,95712.0,95702.0,0.3618]
[1739463430107,0.2089487,95704.0,95702.0,0.3618]
[1739463430494,0.2089487,95704.0,95702.0,0.3608]
[1739463430901,0.22992627,95704.0,95702.0,0.3608]
[1739463432503,0.02197757,95704.0,95702.0,0.3618]
[1739463433012,0.02197757,95704.0,95702.0,0.5707496]
[1739463433215,0.02197757,95704.0,95702.0,0.3618]
[1739463434106,0.02197757,95704.0,95702.0,0.001]
[1739463434307,0.02197757,95704.0,95702.0,0.2099516]
[1739463435310,0.02197757,95704.0,95679.0,0.3608]
[1739463435513,0.2089779,95690.0,95679.0,0.3608]
[1739463436205,0.0769,95696.0,95679.0,0.3608]
[1739463436206,0.208987,95686.0,95679.0,0.3608]
[1739463436408,0.1888646,95691.0,95679.0,0.5698006]
[1739463437004,0.3978417,95691.0,95679.0,0.5698006]
[1739463437313,0.3978417,95691.0,95682.0,0.2089937]
[1739463437518,0.3978417,95691.0,95689.0,0.003]
[1739463438099,0.1888646,95691.0,95679.0,0.3608]
[1739463438511,0.2089784,95690.0,95679.0,0.3608]
[1739463438708,0.1888646,95691.0,95679.0,0.3608]
[1739463439105,0.2089857,95687.0,95679.0,0.3608]
[1739463439313,0.2089857,95687.0,95679.0,0.3618]
[1739463439515,0.1888646,95691.0,95679.0,0.3618]
[1739463439924,0.1908646,95691.0,95679.0,0.3618]
[1739463440810,0.1888646,95691.0,95679.0,0.3519]
[1739463441005,0.2089852,95687.0,95679.0,0.3519]
[1739463441205,0.1888646,95691.0,95680.0,0.2089998]
[1739463441406,0.1888646,95691.0,95679.0,0.3519]
[1739463441819,0.1888646,95691.0,95679.0,0.001]
[1739463441820,0.5697998,95680.0,95679.0,0.001]
[1739463442110,0.5697998,95680.0,95653.0,0.02111679]
[1739463442111,0.0522532,95674.0,95630.0,0.3613]
[1739463442413,1.33024378,95680.0,95653.0,0.3608]
[1739463442414,0.2090499,95658.0,95653.0,0.3608]
[1739463442618,0.00015682,95662.0,95653.0,0.3608]
[1739463442810,0.2090428,95661.0,95653.0,0.3608]
[1739463443112,0.00015682,95662.0,95654.0,0.2090545]
[1739463443315,0.00015682,95662.0,95657.0,0.00574939]
[1739463443517,0.2090467,95659.0,95657.0,0.00574939]
[1739463443817,0.2090467,95659.0,95629.0,0.3608]
[1739463443818,0.3608,95658.0,95629.0,0.3608]
[1739463444005,0.2090985,95635.0,95629.0,0.3608]
[1739463444205,0.1888646,95639.0,95629.0,0.3608]
[1739463444414,0.3608,95658.0,95654.0,0.004]
[1739463444611,0.07844,95657.0,95654.0,0.004]
[1739463444807,0.2090521,95656.0,95654.0,0.004]
[1739463445007,0.07844,95657.0,95638.0,0.1619]
[1739463445008,0.1888646,95650.0,95638.0,0.1619]
[1739463445219,0.1888646,95650.0,95640.0,0.2090858]
[1739463446114,0.1888646,95650.0,95642.0,0.2090825]
[1739463446309,0.002,95658.0,95650.0,0.2090647]
[1739463446514,0.007,95656.0,95650.0,0.2090647]
[1739463447021,0.007,95656.0,95654.0,0.2090548]
[1739463448115,0.007,95656.0,95647.0,0.0763]
[1739463448416,0.002,95650.0,95647.0,0.0763]
[1739463448620,0.00015682,95666.0,95665.0,0.2090324]
[1739463448811,0.00015682,95666.0,95665.0,0.5698324]
[1739463449719,0.01934565,95666.0,95665.0,0.5698324]
[1739463449921,0.00015682,95666.0,95665.0,0.5698324]
[1739463450111,0.01315682,95666.0,95665.0,0.5698324]
[1739463450312,0.03240496,95666.0,95665.0,0.5698324]
[1739463450509,0.006,95666.0,95665.0,0.5698324]
[1739463450714,0.00156905,95684.0,95673.0,0.2090134]
[1739463450922,0.2089947,95683.0,95676.0,0.3608]
[1739463451425,0.01929061,95683.0,95676.0,0.3608]
[1739463451719,0.2089947,95683.0,95676.0,0.3608]
[1739463451919,0.00856905,95684.0,95676.0,0.3608]
[1739463452124,0.00856905,95684.0,95683.0,0.208993]
[1739463452733,0.007,95683.0,95677.0,0.0819]
[1739463453118,0.007,95683.0,95680.0,0.2089983]
[1739463454017,0.009,95683.0,95676.0,0.3608]
[1739463454413,0.009,95683.0,95678.0,0.2090028]
[1739463454612,0.002,95683.0,95678.0,0.2090028]
[1739463454819,0.002,95683.0,95676.0,0.3608]
[1739463455126,0.002,95683.0,95681.0,0.2089968]
[1739463455314,0.02447744,95684.0,95681.0,0.2089968]
[1739463455624,0.005,95683.0,95681.0,0.2089968]
[1739463456023,0.004,95683.0,95681.0,0.2089968]
[1739463456327,0.002,95683.0,95681.0,0.2089968]
[1739463456616,0.003,95683.0,95681.0,0.2089968]
[1739463456823,0.00015682,95689.0,95676.0,0.3608]
[1739463457025,0.1567,95712.0,95688.0,0.3608]
[1739463457219,0.1567,95712.0,95705.0,0.208945]
[1739463458123,0.23578801,95706.0,95705.0,0.208945]
[1739463458320,0.23578801,95706.0,95703.0,0.3608]
[1739463458920,0.2089464,95705.0,95703.0,0.3608]
[1739463459625,0.2089464,95705.0,95703.0,0.3618]
[1739463460027,0.2089464,95705.0,95696.0,0.00015673]
[1739463460238,0.006,95705.0,95703.0,0.001]
[1739463460525,0.07924,95704.0,95703.0,0.001]
[1739463460921,0.2089624,95697.0,95696.0,0.00015673]
[1739463461423,0.2089799,95689.0,95682.0,4.742e-05]
[1739463462226,0.208964,95697.0,95684.0,0.2089895]
[1739463462428,0.3608,95702.0,95682.0,4.742e-05]
[1739463462621,0.3608,95702.0,95683.0,0.07585673]
[1739463462622,0.2089792,95690.0,95683.0,0.07585673]
[1739463462822,0.006,95689.0,95688.0,0.3618]
[1739463463219,0.006,95689.0,95688.0,0.001]
[1739463463824,0.08524,95689.0,95688.0,0.001]
[1739463464221,0.23084,95689.0,95688.0,0.001]
[1739463464422,0.4398199,95689.0,95688.0,0.001]
[1739463464727,0.3605799,95689.0,95688.0,0.002]
[1739463465127,0.3675799,95689.0,95688.0,0.001]
[1739463465622,0.2089932,95683.0,95672.0,0.2090165]
[1739463465831,0.3725799,95689.0,95688.0,0.001]
[1739463466232,0.42342414,95689.0,95688.0,0.001]
[1739463466933,0.21444424,95689.0,95676.0,0.35821999]
[1739463467233,0.2090301,95667.0,95661.0,0.2090401]
[1739463467927,0.00015673,95674.0,95658.0,0.3608]
[1739463468129,0.209033,95665.0,95658.0,0.3608]
[1739463468327,0.00015673,95674.0,95658.0,0.3608]
[1739463468532,0.00015673,95674.0,95664.0,0.2090327]
[1739463468724,0.209023,95670.0,95664.0,0.2090327]
[1739463469229,0.00015673,95674.0,95658.0,0.3628]
[1739463469230,0.00015673,95674.0,95658.0,0.36348]
[1739463469440,0.01948176,95674.0,95673.0,0.2090149]
[1739463469631,0.00115673,95674.0,95673.0,0.2090149]
[1739463470134,0.00015673,95674.0,95673.0,0.2090149]
[1739463470531,0.2089789,95690.0,95672.0,0.2348]
[1739463470726,0.2089806,95689.0,95679.0,0.209001]
[1739463470936,0.2089829,95688.0,95679.0,0.209001]
[1739463471440,0.2089989,95681.0,95672.0,0.2348]
[1739463471743,0.18890541,95682.0,95674.0,0.00015673]
[1739463471940,0.2090105,95675.0,95674.0,0.00015673]
[1739463472141,0.006,95689.0,95674.0,0.00015673]
[1739463472639,0.18890541,95690.0,95674.0,0.00015673]
[1739463472640,0.005,95688.0,95674.0,0.00015673]
[1739463472840,0.001,95681.0,95674.0,0.00015673]
[1739463473040,0.002,95675.0,95674.0,0.00015673]
[1739463473241,0.05285014,95675.0,95674.0,0.20916943]
[1739463473732,0.001,95681.0,95674.0,0.30015673]
[1739463473936,0.00015673,95693.0,95692.0,0.2089734]
[1739463474235,0.00015673,95693.0,95692.0,0.5697734]
[1739463474543,0.00156775,95715.0,95697.0,0.2089625]
[1739463474728,0.01964932,95705.0,95697.0,0.2089625]
[1739463475334,0.00156775,95715.0,95697.0,0.2089625]
[1739463475536,0.22858462,95698.0,95697.0,0.2089625]
[1739463476045,0.004,95698.0,95696.0,0.2089647]
[1739463476341,0.008,95698.0,95696.0,0.2089647]
[1739463476641,0.008,95698.0,95695.0,0.3608]
[1739463477436,0.004,95698.0,95695.0,0.3608]
[1739463477644,0.00018461,95698.0,95696.0,0.2089647]
[1739463478339,0.008,95698.0,95696.0,0.2089647]
[1739463478537,0.00015673,95707.0,95697.0,0.3613]
[1739463478742,0.06257201,95730.0,95706.0,0.3608]
[1739463479038,0.06257201,95730.0,95714.0,0.5697253]
[1739463479534,0.23600581,95724.0,95714.0,0.5697253]
[1739463479937,0.00856775,95715.0,95714.0,0.5697253]
[1739463480337,5e-08,95715.0,95714.0,0.8697253]
[1739463481045,5e-08,95715.0,95714.0,0.8885476]
[1739463481250,5e-08,95715.0,95714.0,0.5885476]
[1739463481451,0.21683366,95724.0,95714.0,0.5885476]
[1739463481452,0.21683366,95724.0,95723.0,0.2089057]
[1739463481637,0.01960299,95729.0,95723.0,0.3608]
[1739463481948,0.18543077,95731.0,95730.0,0.2088904]
[1739463482146,0.06213077,95731.0,95730.0,0.2088904]
[1739463483749,0.08096272,95731.0,95730.0,0.2088904]
[1739463484241,0.08096272,95731.0,95730.0,0.2098904]
[1739463485043,2e-08,95731.0,95730.0,0.2108904]
[1739463485245,0.01927373,95731.0,95730.0,0.5162904]
[1739463485445,2e-08,95731.0,95730.0,0.2162904]
[1739463485950,2e-08,95731.0,95730.0,0.2108904]
[1739463486247,0.01914641,95731.0,95730.0,0.2108904]
[1739463486546,2e-08,95731.0,95730.0,0.5108904]
[1739463488150,2e-08,95731.0,95730.0,0.2108904]
[1739463491151,2e-08,95731.0,95730.0,0.002]
[1739463491453,0.20888832,95731.0,95730.0,0.002]
[1739463492445,2e-08,95731.0,95730.0,0.002]
[1739463498159,2e-08,95731.0,95730.0,0.32086249]
[1739463498658,5e-08,95740.0,95739.0,0.2088708]
[1739463498863,5e-08,95740.0,95739.0,0.9309708]
[1739463499552,5e-08,95740.0,95739.0,1.2309708]
[1739463499952,0.0775,95766.0,95765.0,0.2088141]
[1739463500153,0.0775,95766.0,95765.0,0.5696141]
[1739463500154,0.1594,95766.0,95765.0,0.5696141]
[1739463501649,0.1594,95766.0,95765.0,0.5706141]
[1739463501860,0.1634,95766.0,95765.0,0.5716141]
[1739463502063,0.1634,95766.0,95765.0,0.590561]
[1739463502356,1e-07,95766.0,95765.0,0.890561]
[1739463502966,0.00015663,95775.0,95774.0,0.2087945]
[1739463503163,0.00015663,95775.0,95774.0,0.5695945]
[1739463506473,0.00015663,95775.0,95774.0,0.8695945]
[1739463506776,0.00015663,95775.0,95774.0,0.5695945]
[1739463506976,0.00015663,95775.0,95774.0,0.9308945]
[1739463510581,3e-08,95775.0,95774.0,0.9308945]
[1739463510872,3e-08,95775.0,95774.0,1.2308945]
[1739463511380,3e-08,95775.0,95774.0,0.9308945]
[1739463512077,0.02389855,95775.0,95765.0,0.3614]
[1739463512376,0.0823,95774.0,95772.0,0.2087975]
[1739463512577,3e-08,95775.0,95765.0,0.3608]
[1739463512578,3e-08,95775.0,95774.0,0.2087945]
[1739463515471,3e-08,95775.0,95773.0,0.3608]
[1739463515674,0.20879233,95775.0,95773.0,0.3608]
[1739463515970,0.20879233,95775.0,95758.0,0.3613]
[1739463515971,0.2088268,95760.0,95758.0,0.3613]
[1739463516283,0.2088294,95758.0,95756.0,0.00015663]
[1739463516478,0.2376,95759.0,95756.0,0.00015663]
[1739463516778,0.2376,95759.0,95758.0,0.2088294]
[1739463518178,0.0776,95759.0,95758.0,0.2088294]
[1739463519570,0.0786,95759.0,95758.0,0.2088294]
[1739463519972,0.0776,95759.0,95758.0,0.2088294]
[1739463520279,0.0786,95759.0,95758.0,0.2088294]
[1739463521289,0.0786,95759.0,95757.0,0.3608]
[1739463521588,0.2874272,95759.0,95757.0,0.3608]
[1739463521775,0.0786,95759.0,95757.0,0.5696312]
[1739463522784,0.0776,95759.0,95757.0,0.5696312]
[1739463523085,0.0776,95759.0,95757.0,0.3608]
[1739463523269,0.2864276,95759.0,95757.0,0.3608]
[1739463523679,0.0776,95759.0,95757.0,0.5696309]
[1739463530196,0.0776,95759.0,95758.0,0.2088294]
[1739463530991,0.16,95774.0,95773.0,0.2087967]
[1739463531588,0.3687945,95774.0,95773.0,0.2087967]
[1739463531794,0.16,95774.0,95773.0,0.2087967]
[1739463532189,0.2383,95774.0,95773.0,0.2087967]
[1739463532794,0.2383,95774.0,95760.0,0.17792469]
[1739463532795,0.2383,95774.0,95756.0,0.00015663]
[1739463532990,0.2088079,95768.0,95767.0,0.2088054]
[1739463533385,0.2087999,95772.0,95771.0,0.2087967]
[1739463533585,0.1563,95774.0,95773.0,0.2087967]
[1739463533794,0.1573,95774.0,95773.0,0.5695967]
[1739463534500,0.3660945,95774.0,95773.0,0.2087967]
[1739463534697,0.4465945,95774.0,95773.0,0.2087967]
[1739463535101,0.2378,95774.0,95744.0,0.3608]
[1739463535296,0.2088316,95760.0,95759.0,0.2088232]
[1739463535602,0.2088086,95768.0,95767.0,0.2088079]
[1739463536096,0.2388,95774.0,95750.0,0.17793059]
[1739463536899,0.208808,95768.0,95767.0,0.2088092]
[1739463537196,0.2088186,95763.0,95762.0,0.2088205]
[1739463537401,0.2378,95774.0,95756.0,0.00215663]
[1739463537697,0.2378,95774.0,95773.0,0.2087967]
[1739463537698,0.4465958,95774.0,95773.0,0.2087967]
[1739463538293,0.2378,95774.0,95773.0,0.2087967]
[1739463538497,0.1563,95774.0,95773.0,0.2087967]
[1739463538698,0.078,95774.0,95773.0,0.2087967]
[1739463538898,3e-08,95775.0,95774.0,0.2087945]
[1739463539598,3e-08,95775.0,95774.0,0.23271053]
[1739463539900,3e-08,95775.0,95774.0,0.2087945]
[1739463541598,0.00100003,95775.0,95774.0,0.2087945]
[1739463545195,0.00100003,95775.0,95766.0,0.3613]
[1739463545391,0.0755,95774.0,95773.0,0.3608]
[1739463545801,0.00100003,95775.0,95774.0,0.2087945]
[1739463546901,3e-08,95775.0,95774.0,0.2087945]
[1739463547797,0.00100003,95775.0,95774.0,0.2087945]
[1739463553495,0.06700986,95795.0,95794.0,0.2087509]
[1739463553906,0.09151918,95795.0,95794.0,0.2087509]
[1739463554801,0.09251918,95795.0,95794.0,0.2087509]
[1739463555004,0.30126798,95795.0,95794.0,0.2087509]
[1739463555399,0.09251918,95795.0,95794.0,0.2087509]
[1739463558409,0.06800986,95795.0,95794.0,0.5695509]
[1739463559012,0.09194807,95795.0,95794.0,0.5695509]
[1739463559306,0.06800986,95795.0,95794.0,0.5695509]
[1739463560304,0.001,95795.0,95794.0,0.5695509]
[1739463561811,0.001,95795.0,95794.0,0.7883509]
[1739463566014,1e-07,95795.0,95794.0,0.7883509]
[1739463567309,5e-08,95800.0,95799.0,0.20874]
[1739463567618,5e-08,95800.0,95799.0,0.56954]
[1739463569319,4e-08,95804.0,95803.0,0.2087313]
[1739463570723,4e-08,95804.0,95803.0,0.23252811]
[1739463572208,4e-08,95804.0,95799.0,0.9409]
[1739463572419,0.2087379,95800.0,95799.0,1.1496357]
[1739463572616,0.16350004,95804.0,95799.0,0.9409]
[1739463572928,0.37222954,95804.0,95803.0,0.2087313]
[1739463573125,0.2087379,95800.0,95799.0,1.1496313]
[1739463573328,0.37223034,95804.0,95803.0,0.2087313]
[1739463575123,0.16350004,95804.0,95803.0,0.2087313]
[1739463575323,4e-08,95804.0,95803.0,0.2087313]
[1739463575823,4e-08,95804.0,95803.0,0.23053817]
[1739463581218,4e-08,95804.0,95803.0,0.44933817]
[1739463593029,4e-08,95804.0,95803.0,0.4275313]
[1739463599236,4e-08,95804.0,95803.0,0.2087313]
[1739463599838,4e-08,95804.0,95800.0,0.3608]
[1739463600138,4e-08,95804.0,95803.0,0.2087313]
[1739463600438,0.20872924,95804.0,95803.0,0.2087313]
[1739463602532,4e-08,95804.0,95803.0,0.2087313]
[1739463604337,0.2087357,95801.0,95800.0,0.3608]
[1739463604540,0.3608,95803.0,95791.0,0.2188]
[1739463604741,0.0827,95800.0,95791.0,0.2188]
[1739463605039,0.2087553,95792.0,95791.0,0.2188]
[1739463605640,0.0815,95798.0,95787.0,0.2087655]
[1739463605937,0.2087682,95787.0,95785.0,0.36095663]
[1739463606137,0.2087682,95787.0,95785.0,0.00015663]
[1739463606338,0.2087902,95776.0,95775.0,0.3608]
[1739463606557,0.48651899,95795.0,95775.0,0.3608]
[1739463606937,0.2087561,95792.0,95786.0,0.2087678]
[1739463607136,0.48651899,95795.0,95786.0,0.2087678]
[1739463607336,0.2087605,95790.0,95786.0,0.2087678]
[1739463608346,0.2087605,95790.0,95781.0,0.00015663]
[1739463608347,0.2087771,95782.0,95781.0,0.00015663]
[1739463609545,0.23006353,95782.0,95781.0,0.00015663]